fUST/lending_fUST_20240713
["ID","MTS","AMOUNT","RATE_DAILY","PERIOD"]
[331871282,1720804249640,-647.75,0.00024931,2]
[331871283,1720804249650,-981.32,0.00024931,2]
[331871284,1720804249659,-500.0,0.00024931,2]
[331871285,1720804249669,-812.077679,0.00024931,2]
[331871286,1720804249678,-812.077679,0.00024931,2]
[331871287,1720804249687,-500.0,0.00024931,2]
[331871288,1720804249697,-500.0,0.00024931,2]
[331871289,1720804249707,-500.0,0.00024931,2]
[331871290,1720804249716,-812.077679,0.00024931,2]
[331871291,1720804249725,-812.077679,0.00024931,2]
[331871292,1720804249735,-1666.15,0.00024931,2]
[331871293,1720804249744,-616.17,0.00024931,2]
[331871294,1720804249754,-931.09,0.00024931,2]
[331871295,1720804249764,-500.0,0.00024931,2]
[331871296,1720804249774,-500.0,0.00024931,2]
[331871297,1720804249783,-525.69,0.00024931,2]
[331871298,1720804249792,-500.0,0.00024931,2]
[331871299,1720804249801,-500.0,0.00024931,2]
[331871300,1720804249811,-151.0,0.00024931,7]
[331871301,1720804249821,-151.0,0.00024931,7]
[331871302,1720804249831,-500.0,0.00024931,2]
[331871303,1720804249840,-151.0,0.00024931,7]
[331871304,1720804249851,-151.0,0.00024931,7]
[331871305,1720804249860,-500.0,0.00024931,2]
[331871306,1720804249870,-500.0,0.00024931,2]
[331871307,1720804249880,-500.0,0.00024931,2]
[331871308,1720804249889,-500.0,0.00024931,2]
[331871309,1720804249899,-500.0,0.00024931,2]
[331871310,1720804249908,-500.0,0.00024931,2]
[331871311,1720804249918,-500.0,0.00024931,2]
[331871312,1720804249927,-635.38,0.00024931,2]
[331871313,1720804249937,-151.0,0.00024931,7]
[331871314,1720804249947,-500.0,0.00024931,2]
[331871315,1720804249957,-164.891884,0.00024931,7]
[331871316,1720804249967,-500.0,0.00024931,2]
[331871317,1720804249976,-500.0,0.00024931,2]
[331871318,1720804249985,-500.0,0.00024931,2]
[331871319,1720804249994,-500.0,0.00024931,2]
[331871320,1720804250003,-500.0,0.00024931,2]
[331871321,1720804250013,-500.0,0.00024931,2]
[331871322,1720804250022,-500.0,0.00024931,2]
[331871323,1720804250032,-500.0,0.00024931,2]
[331871324,1720804250043,-500.0,0.00024931,2]
[331871325,1720804250054,-520.027836,0.00024931,2]
[331871326,1720804250064,-500.0,0.00024931,2]
[331871327,1720804250076,-500.0,0.00024931,2]
[331871328,1720804250086,-165.029847,0.00024931,7]
[331871329,1720804250097,-500.0,0.00024931,2]
[331871330,1720804250108,-500.0,0.00024931,2]
[331871331,1720804250118,-500.0,0.00024931,2]
[331871332,1720804250128,-500.0,0.00024931,2]
[331871333,1720804250138,-500.0,0.00024931,2]
[331871334,1720804250148,-500.0,0.00024931,2]
[331871335,1720804250158,-500.0,0.00024931,2]
[331871336,1720804250168,-500.0,0.00024931,2]
[331871337,1720804250179,-500.0,0.00024931,2]
[331871338,1720804250189,-500.0,0.00024931,2]
[331871339,1720804250198,-500.0,0.00024931,2]
[331871340,1720804250212,-500.0,0.00024931,2]
[331871341,1720804250223,-500.0,0.00024931,2]
[331871342,1720804250232,-500.0,0.00024931,2]
[331871343,1720804250241,-500.0,0.00024931,2]
[331871344,1720804250250,-500.0,0.00024931,2]
[331871345,1720804250260,-500.0,0.00024931,2]
[331871346,1720804250269,-500.0,0.00024931,2]
[331871347,1720804250279,-784.5,0.00024931,2]
[331871348,1720804250289,-1577.74,0.00024931,2]
[331871349,1720804250299,-500.0,0.00024931,2]
[331871350,1720804250309,-500.0,0.00024931,2]
[331871351,1720804250319,-500.0,0.00024931,2]
[331871352,1720804250329,-500.0,0.00024931,2]
[331871353,1720804250339,-500.0,0.00024931,2]
[331871354,1720804250348,-500.0,0.00024931,2]
[331871355,1720804250358,-520.35342488,0.00024931,2]
[331871356,1720804250367,-967.38,0.00024931,2]
[331871357,1720804250378,-500.0,0.00024931,2]
[331871358,1720804250388,-151.0,0.00024931,7]
[331871359,1720804250398,-151.0,0.00024931,7]
[331871360,1720804250408,-803.94,0.00024931,2]
[331871361,1720804250418,-500.0,0.00024931,2]
[331871362,1720804250429,-500.0,0.00024931,2]
[331871363,1720804250438,-500.0,0.00024931,2]
[331871364,1720804250451,-500.0,0.00024931,2]
[331871365,1720804250462,-7406.6,0.00024931,2]
[331871366,1720804250472,-3604.12,0.00024931,2]
[331871367,1720804250481,-500.0,0.00024931,2]
[331871368,1720804250492,-500.0,0.00024931,2]
[331871369,1720804250502,-500.0,0.00024931,2]
[331871370,1720804250512,-500.0,0.00024931,2]
[331871371,1720804250522,-500.0,0.00024931,2]
[331871372,1720804250532,-500.0,0.00024931,2]
[331871373,1720804250542,-561.96,0.00024931,2]
[331871374,1720804250552,-500.0,0.00024931,2]
[331871375,1720804250563,-267.943933,0.00024931,7]
[331871376,1720804250573,-500.0,0.00024931,2]
[331871377,1720804250584,-500.0,0.00024931,2]
[331871378,1720804250593,-500.0,0.00024931,2]
[331871379,1720804250603,-500.0,0.00024931,2]
[331871380,1720804250612,-551.2,0.00024931,2]
[331871381,1720804250622,-500.0,0.00024931,2]
[331871382,1720804250631,-500.0,0.00024931,2]
[331871383,1720804250641,-500.0,0.00024931,2]
[331871384,1720804250651,-500.0,0.00024931,2]
[331871385,1720804250660,-500.0,0.00024931,2]
[331871386,1720804250670,-151.0,0.00024931,7]
[331871387,1720804250679,-151.0,0.00024931,7]
[331871388,1720804250689,-500.0,0.00024931,2]
[331871389,1720804250701,-500.0,0.00024931,2]
[331871390,1720804250710,-500.0,0.00024931,2]
[331871391,1720804250720,-203.1806836,0.00024931,2]
[331871392,1720804250730,-500.0,0.00024931,2]
[331871393,1720804250739,-500.0,0.00024931,2]
[331871394,1720804250748,-500.0,0.00024931,2]
[331871395,1720804250758,-500.0,0.00024931,2]
[331871396,1720804250767,-3746.63,0.00024931,2]
[331871397,1720804250778,-14168.7227516,0.0002499,3]
[331871398,1720804250790,-151.0,0.0002499,7]
[331871399,1720804250799,-5852.79648055,0.00025,2]
[331871400,1720804250811,-38010.70992332,0.00025,2]
[331871401,1720804250822,-150.112233,0.00025,2]
[331871402,1720804250834,-150.112233,0.00025,2]
[331871403,1720804250843,-151.0,0.00025,7]
[331871404,1720804250854,-151.0,0.00025,7]
[331871405,1720804250864,-812.077679,0.00025,2]
[331871406,1720804250873,-812.077679,0.00025,2]
[331871407,1720804250883,-151.0,0.00025,7]
[331871408,1720804250892,-151.0,0.00025,7]
[331871409,1720804250901,-223.343938,0.00025,7]
[331871410,1720804250911,-151.0,0.00025185,7]
[331871411,1720804250920,-14168.7227516,0.00025195,3]
[331871412,1720804250930,-150.112233,0.000252,2]
[331871413,1720804250940,-150.112233,0.000252,2]
[331871414,1720804250951,-15201.24142173,0.00025204,2]
[331871504,1720805048348,5213.11762924,0.00016255,2]
[331871506,1720805089066,496.45062974,0.00016255,2]
[331871507,1720805096320,540.58085513,0.00016255,2]
[331871508,1720805099610,155.62578204,0.00016255,2]
[331871509,1720805105784,155.45716296,0.00016255,2]
[331871515,1720805146262,236.22452928,0.00016255,2]
[331871518,1720805155394,287.51223328,0.00016255,2]
[331871551,1720805234714,302.3111812,0.00016255,2]
[331871552,1720805261365,438.85973733,0.00016255,2]
[331871560,1720805347008,154.76005712,0.00016255,2]
[331871561,1720805357244,-525.73842429,0.00018899,2]
[331871562,1720805357269,-813.14107465,0.00019039,3]
[331871563,1720805357291,-197.30576581,0.00019056,2]
[331871564,1720805357315,-162.355941,0.0002017,2]
[331871566,1720805369144,-178.571429,0.00020631,2]
[331871567,1720805369166,-4234.35309731,0.0002066,7]
[331871568,1720805369187,-178.571429,0.00020846,2]
[331871569,1720805369208,-178.571429,0.00021061,2]
[331871570,1720805369228,-285.0,0.00021095,2]
[331871571,1720805369248,-187.84280407,0.00021095,2]
[331871572,1720805369271,-167.325424,0.00021096,2]
[331871573,1720805369290,-381.854631,0.00021096,2]
[331871574,1720805369311,-178.571429,0.00021276,2]
[331871575,1720805369331,-178.571429,0.00021491,2]
[331871576,1720805369352,-178.571429,0.00021706,2]
[331871577,1720805369372,-300.0,0.00021916,2]
[331871578,1720805369392,-492.90786688,0.00021917,2]
[331871579,1720805369413,-174.273238,0.00021918,2]
[331871580,1720805369434,-13944.24540763,0.00022491,2]
[331871581,1720805372126,-155.98249062,0.0002243,2]
[331871582,1720805372150,-80.90399738,0.00022491,2]
[331871583,1720805391331,263.29031622,0.00020391,2]
[331871625,1720805433285,-346.6621426,0.00019703,2]
[331871627,1720805433296,-187.68063436,0.00019703,2]
[331871629,1720805433306,-125.4928963,0.00020391,2]
[331871632,1720805433317,-1066.1731197,0.00021917,2]
[331871634,1720805433327,-300.0,0.0002249,2]
[331871636,1720805433337,-10874.85059499,0.00022491,2]
[331871638,1720805433348,-2258.0636747,0.00022737,2]
[331871640,1720805433358,-174.273238,0.000232,2]
[331871642,1720805433368,-150.112233,0.000233,5]
[331871644,1720805433378,-2641.34794536,0.00023417,2]
[331871646,1720805433389,-161.078672,0.00023517,2]
[331871648,1720805433400,-150.112233,0.000236,3]
[331871650,1720805433410,-150.112233,0.000238,4]
[331871652,1720805433420,-150.112233,0.000238,4]
[331871655,1720805433431,-30000.0,0.00023966,2]
[331871657,1720805433440,-150.112233,0.00024,4]
[331871659,1720805433451,-150.112233,0.00024,5]
[331871661,1720805433464,-150.112233,0.000243,3]
[331871663,1720805433474,-150.112233,0.000243,5]
[331871665,1720805433485,-174.273238,0.00024482,2]
[331871667,1720805433497,-150.112233,0.000245,3]
[331871669,1720805433507,-150.112233,0.000245,4]
[331871671,1720805433516,-397.51944709,0.00024556,2]
[331871673,1720805433526,-397.51944706,0.00024556,2]
[331871675,1720805433535,-397.51944706,0.00024557,2]
[331871677,1720805433544,-397.51944706,0.00024557,2]
[331871679,1720805433559,-2000.0,0.00024557,2]
[331871681,1720805433570,-397.51944706,0.00024557,2]
[331871683,1720805433580,-6798.0866824,0.00024637,3]
[331871685,1720805433591,-5495.71479565,0.00024647,3]
[331872041,1720805438306,-375.00206261,0.0002448,2]
[331872042,1720805438316,-35292.80529875,0.00024647,3]
[331872043,1720805438326,-500.0,0.00024656,2]
[331872044,1720805438335,-477.98674124,0.00024656,2]
[331872045,1720805438344,-500.0,0.00024656,2]
[331872046,1720805438354,-500.0,0.00024656,2]
[331872047,1720805438364,-167.7355479,0.00024656,2]
[331872048,1720805438374,-500.0,0.00024656,2]
[331872049,1720805438383,-178.83228267,0.00024656,2]
[331872050,1720805438392,-500.0,0.00024656,2]
[331872051,1720805438401,-610.03648656,0.00024656,2]
[331872052,1720805438411,-500.0,0.00024656,2]
[331872053,1720805438421,-500.0,0.00024657,2]
[331872054,1720805438430,-500.0,0.00024657,2]
[331872055,1720805438439,-500.0,0.00024657,2]
[331872056,1720805438449,-500.0,0.00024657,2]
[331872057,1720805438458,-500.0,0.00024657,2]
[331872058,1720805438470,-500.0,0.00024657,2]
[331872059,1720805438479,-500.0,0.00024657,2]
[331872060,1720805438489,-500.0,0.00024657,2]
[331872061,1720805438499,-500.0,0.00024657,2]
[331872062,1720805438508,-500.0,0.00024657,2]
[331872063,1720805438518,-500.0,0.00024657,2]
[331872064,1720805438527,-500.0,0.00024657,2]
[331872065,1720805438537,-500.0,0.00024657,2]
[331872066,1720805438549,-500.0,0.00024657,2]
[331872067,1720805438563,-500.0,0.00024657,2]
[331872068,1720805438572,-500.0,0.00024657,2]
[331872069,1720805438581,-500.0,0.00024657,2]
[331872070,1720805438591,-500.0,0.00024657,2]
[331872071,1720805438601,-500.0,0.00024657,2]
[331872072,1720805438611,-500.0,0.00024657,2]
[331872073,1720805438620,-500.0,0.00024657,2]
[331872074,1720805438632,-500.0,0.00024657,2]
[331872075,1720805438641,-500.0,0.00024657,2]
[331872076,1720805438650,-500.0,0.00024657,2]
[331872077,1720805438660,-500.0,0.00024657,2]
[331872078,1720805438669,-500.0,0.00024657,2]
[331872079,1720805438679,-500.0,0.00024657,2]
[331872080,1720805438688,-500.0,0.00024657,2]
[331872081,1720805438697,-500.0,0.00024657,2]
[331872082,1720805438706,-500.0,0.00024657,2]
[331872083,1720805438718,-500.0,0.00024657,2]
[331872084,1720805438727,-500.0,0.00024657,2]
[331872085,1720805438737,-500.0,0.00024657,2]
[331872086,1720805438746,-500.0,0.00024657,2]
[331872087,1720805438755,-500.0,0.00024657,2]
[331872088,1720805438764,-500.0,0.00024657,2]
[331872089,1720805438774,-500.0,0.00024657,2]
[331872090,1720805438784,-500.0,0.00024657,2]
[331872091,1720805438793,-200.0,0.00024657,2]
[331872092,1720805438803,-500.0,0.00024657,2]
[331872093,1720805438812,-524.47823678,0.00024657,2]
[331872094,1720805438822,-535.38738344,0.00024657,2]
[331872095,1720805438831,-512.04936283,0.00024657,2]
[331872096,1720805438841,-500.0,0.00024657,2]
[331872097,1720805438850,-500.0,0.00024657,2]
[331872098,1720805438859,-500.0,0.00024657,2]
[331872099,1720805438868,-500.0,0.00024657,2]
[331872100,1720805438877,-500.0,0.00024657,2]
[331872101,1720805438887,-500.0,0.00024657,2]
[331872102,1720805438896,-500.0,0.00024657,2]
[331872103,1720805438905,-500.0,0.00024657,2]
[331872105,1720805438914,-500.0,0.00024657,2]
[331872107,1720805438923,-500.0,0.00024657,2]
[331872108,1720805438933,-559.60509344,0.00024657,2]
[331872110,1720805438941,-500.0,0.00024657,2]
[331872111,1720805438951,-500.0,0.00024657,2]
[331872112,1720805438960,-500.0,0.00024657,2]
[331872113,1720805438975,-500.0,0.00024657,2]
[331872114,1720805438984,-500.0,0.00024657,2]
[331872115,1720805438993,-500.0,0.00024657,2]
[331872116,1720805439002,-500.0,0.00024657,2]
[331872117,1720805439011,-500.0,0.00024657,2]
[331872118,1720805439020,-500.0,0.00024657,2]
[331872119,1720805439029,-535.58,0.00024657,2]
[331872120,1720805439038,-500.0,0.00024657,2]
[331872121,1720805439047,-533.09,0.00024657,2]
[331872122,1720805439056,-500.0,0.00024657,2]
[331872123,1720805439065,-500.0,0.00024657,2]
[331872124,1720805439075,-500.0,0.00024657,2]
[331872125,1720805439084,-521.72,0.00024657,2]
[331872126,1720805439093,-500.0,0.00024657,2]
[331872127,1720805439102,-500.0,0.00024657,2]
[331872128,1720805439111,-500.0,0.00024657,2]
[331872129,1720805439120,-500.0,0.00024657,2]
[331872130,1720805439129,-500.0,0.00024657,2]
[331872131,1720805439138,-500.0,0.00024657,2]
[331872132,1720805439147,-200.0,0.00024657,7]
[331872133,1720805439156,-500.0,0.00024657,2]
[331872134,1720805439165,-500.0,0.00024657,2]
[331872135,1720805439173,-500.0,0.00024657,2]
[331872136,1720805439183,-500.0,0.00024657,2]
[331872137,1720805439191,-500.0,0.00024657,2]
[331872138,1720805439200,-500.0,0.00024657,2]
[331872139,1720805439210,-500.0,0.00024657,2]
[331872140,1720805439226,-500.0,0.00024657,2]
[331872141,1720805439235,-500.0,0.00024657,2]
[331872142,1720805439244,-500.0,0.00024657,2]
[331872143,1720805439253,-500.0,0.00024657,2]
[331872144,1720805439262,-500.0,0.00024657,2]
[331872145,1720805439271,-579.77281388,0.00024657,2]
[331872146,1720805439280,-500.0,0.00024657,2]
[331872147,1720805439289,-557.6,0.00024657,2]
[331872148,1720805439298,-500.0,0.00024657,2]
[331872149,1720805439308,-500.0,0.00024657,2]
[331872150,1720805439317,-500.0,0.00024657,2]
[331872151,1720805439326,-500.0,0.00024657,2]
[331872152,1720805439336,-500.0,0.00024657,2]
[331872153,1720805439345,-500.0,0.00024657,2]
[331872154,1720805439355,-500.0,0.00024657,2]
[331872155,1720805439364,-500.0,0.00024657,2]
[331872156,1720805439374,-534.26869041,0.00024657,2]
[331872157,1720805439383,-500.0,0.00024657,2]
[331872158,1720805439393,-500.0,0.00024657,2]
[331872159,1720805439402,-500.0,0.00024657,2]
[331872160,1720805439411,-500.0,0.00024657,2]
[331872161,1720805439420,-543.73,0.00024657,2]
[331872162,1720805439429,-198.99681093,0.00024657,2]
[331872163,1720805439438,-562.98,0.00024657,2]
[331872164,1720805439447,-500.0,0.00024657,2]
[331872165,1720805439456,-1500.0,0.00024657,2]
[331872166,1720805439470,-500.0,0.00024657,2]
[331872167,1720805439479,-500.0,0.00024657,2]
[331872168,1720805439488,-500.0,0.00024657,2]
[331872169,1720805439497,-727.05,0.00024657,2]
[331872170,1720805439506,-534.40911496,0.00024657,2]
[331872171,1720805439515,-500.0,0.00024657,2]
[331872172,1720805439525,-500.0,0.00024657,2]
[331872173,1720805439534,-500.0,0.00024657,2]
[331872174,1720805439543,-404.68639944,0.00024657,2]
[331872175,1720805439557,-500.0,0.00024657,2]
[331872176,1720805439566,-500.0,0.00024657,2]
[331872177,1720805439574,-500.0,0.00024657,2]
[331872178,1720805439583,-500.0,0.00024657,2]
[331872179,1720805439593,-500.0,0.00024657,2]
[331872180,1720805439602,-500.0,0.00024657,2]
[331872181,1720805439611,-500.0,0.00024657,2]
[331872182,1720805439620,-500.0,0.00024657,2]
[331872183,1720805439631,-500.0,0.00024657,2]
[331872184,1720805439641,-500.0,0.00024657,2]
[331872185,1720805439650,-500.0,0.00024657,2]
[331872186,1720805439659,-500.0,0.00024657,2]
[331872187,1720805439669,-500.0,0.00024657,2]
[331872188,1720805439678,-500.0,0.00024657,2]
[331872189,1720805439687,-500.0,0.00024657,2]
[331872190,1720805439696,-500.0,0.00024657,2]
[331872191,1720805439705,-500.0,0.00024657,2]
[331872192,1720805439716,-500.0,0.00024657,2]
[331872193,1720805439725,-500.0,0.00024657,2]
[331872194,1720805439734,-500.0,0.00024657,2]
[331872195,1720805439743,-500.0,0.00024657,2]
[331872196,1720805439752,-500.0,0.00024657,2]
[331872197,1720805439761,-604.96,0.00024657,2]
[331872198,1720805439770,-1415.6,0.00024657,2]
[331872199,1720805439779,-500.0,0.00024657,2]
[331872200,1720805439787,-500.0,0.00024657,2]
[331872201,1720805439797,-500.0,0.00024657,2]
[331872202,1720805439806,-500.0,0.00024657,2]
[331872205,1720805439815,-522.26876089,0.00024657,2]
[331872207,1720805439824,-500.0,0.00024657,2]
[331872209,1720805439834,-500.0,0.00024657,2]
[331872211,1720805439844,-500.0,0.00024657,2]
[331872213,1720805439854,-500.0,0.00024657,2]
[331872215,1720805439863,-500.0,0.00024657,2]
[331872217,1720805439873,-500.0,0.00024657,2]
[331872219,1720805439882,-500.0,0.00024657,2]
[331872221,1720805439892,-938.22,0.00024657,2]
[331872223,1720805439901,-1837.16,0.00024657,2]
[331872225,1720805439910,-500.0,0.00024657,2]
[331872227,1720805439920,-500.0,0.00024657,2]
[331872229,1720805439929,-500.0,0.00024657,2]
[331872231,1720805439940,-543.27,0.00024657,2]
[331872233,1720805439950,-500.0,0.00024657,2]
[331872235,1720805439959,-475.69052049,0.00024657,2]
[331872237,1720805439970,-500.0,0.00024657,2]
[331872239,1720805439979,-500.0,0.00024657,2]
[331872241,1720805439988,-522.11,0.00024657,2]
[331872243,1720805439997,-151.0,0.00024657,2]
[331872245,1720805440006,-725.85,0.00024657,2]
[331872247,1720805440017,-500.0,0.00024657,2]
[331872249,1720805440027,-500.0,0.00024657,2]
[331872251,1720805440036,-151.0,0.00024657,2]
[331872253,1720805440045,-500.0,0.00024657,2]
[331872255,1720805440055,-500.0,0.00024657,2]
[331872257,1720805440064,-500.0,0.00024657,2]
[331872259,1720805440073,-500.0,0.00024657,2]
[331872261,1720805440082,-500.0,0.00024657,2]
[331872263,1720805440092,-500.0,0.00024657,2]
[331872266,1720805440101,-248.24,0.00024657,2]
[331872269,1720805440111,-500.0,0.00024657,2]
[331872272,1720805440120,-500.0,0.00024657,2]
[331872275,1720805440130,-500.0,0.00024657,2]
[331872278,1720805440139,-500.0,0.00024657,2]
[331872281,1720805440150,-500.0,0.00024657,2]
[331872283,1720805440160,-589.43,0.00024657,2]
[331872285,1720805440169,-500.0,0.00024657,2]
[331872287,1720805440178,-500.0,0.00024657,2]
[331872289,1720805440187,-500.0,0.00024657,2]
[331872292,1720805440198,-557.21,0.00024657,2]
[331872295,1720805440207,-500.0,0.00024657,2]
[331872297,1720805440220,-500.0,0.00024657,2]
[331872299,1720805440229,-500.0,0.00024657,2]
[331872300,1720805440237,-500.0,0.00024657,2]
[331872301,1720805440246,-500.0,0.00024657,2]
[331872302,1720805440256,-500.0,0.00024657,2]
[331872303,1720805440266,-440.95676898,0.00024657,2]
[331872305,1720805440275,-528.33,0.00024657,2]
[331872308,1720805440285,-500.0,0.00024657,2]
[331872310,1720805440294,-500.0,0.00024657,2]
[331872313,1720805440303,-500.0,0.00024657,2]
[331872316,1720805440313,-500.0,0.00024657,2]
[331872319,1720805440322,-500.0,0.00024657,2]
[331872322,1720805440331,-500.0,0.00024657,2]
[331872325,1720805440341,-500.0,0.00024657,2]
[331872327,1720805440350,-500.0,0.00024657,2]
[331872328,1720805440360,-500.0,0.00024657,2]
[331872329,1720805440370,-620.76,0.00024657,2]
[331872331,1720805440379,-500.0,0.00024657,2]
[331872333,1720805440389,-500.0,0.00024657,2]
[331872334,1720805440398,-500.0,0.00024657,2]
[331872335,1720805440408,-500.0,0.00024657,2]
[331872336,1720805440418,-500.0,0.00024657,2]
[331872337,1720805440428,-500.0,0.00024657,2]
[331872338,1720805440437,-735.63,0.00024657,2]
[331872339,1720805440447,-500.0,0.00024657,2]
[331872340,1720805440456,-525.77061197,0.00024657,2]
[331872341,1720805440470,-500.0,0.00024657,2]
[331872342,1720805440482,-500.0,0.00024657,2]
[331872343,1720805440492,-832.67,0.00024657,2]
[331872344,1720805440502,-151.0,0.00024657,7]
[331872345,1720805440512,-500.0,0.00024657,2]
[331872346,1720805440522,-500.0,0.00024657,2]
[331872347,1720805440531,-500.0,0.00024657,2]
[331872348,1720805440541,-500.0,0.00024657,2]
[331872349,1720805440550,-500.0,0.00024657,2]
[331872350,1720805440564,-627.26,0.00024657,2]
[331872351,1720805440574,-500.0,0.00024657,2]
[331872352,1720805440584,-500.0,0.00024657,2]
[331872353,1720805440593,-587.62,0.00024657,2]
[331872354,1720805440604,-552.53446985,0.00024657,2]
[331872355,1720805440613,-527.94,0.00024657,2]
[331872356,1720805440622,-500.0,0.00024657,2]
[331872357,1720805440634,-508.02,0.00024657,2]
[331872358,1720805440643,-500.0,0.00024657,2]
[331872359,1720805440653,-500.0,0.00024657,2]
[331872360,1720805440662,-500.0,0.00024657,2]
[331872361,1720805440672,-500.0,0.00024657,2]
[331872362,1720805440681,-500.0,0.00024657,2]
[331872363,1720805440691,-500.0,0.00024657,2]
[331872364,1720805440699,-526.29,0.00024657,2]
[331872365,1720805440709,-500.0,0.00024657,2]
[331872366,1720805440720,-500.0,0.00024657,2]
[331872367,1720805440729,-500.0,0.00024657,2]
[331872368,1720805440738,-500.0,0.00024657,2]
[331872369,1720805440747,-500.0,0.00024657,2]
[331872370,1720805440757,-500.0,0.00024657,2]
[331872371,1720805440766,-500.0,0.00024657,2]
[331872372,1720805440775,-500.0,0.00024657,2]
[331872373,1720805440945,-500.0,0.00024657,2]
[331872374,1720805440954,-500.0,0.00024657,2]
[331872375,1720805440964,-500.0,0.00024657,2]
[331872376,1720805440975,-500.0,0.00024657,2]
[331872377,1720805440985,-500.0,0.00024657,2]
[331872378,1720805440993,-500.0,0.00024657,2]
[331872379,1720805441003,-500.0,0.00024657,2]
[331872380,1720805441013,-500.0,0.00024657,2]
[331872381,1720805441022,-770.44,0.00024657,2]
[331872382,1720805441031,-500.0,0.00024657,2]
[331872383,1720805441040,-500.0,0.00024657,2]
[331872384,1720805441049,-500.0,0.00024657,2]
[331872385,1720805441059,-1096.83,0.00024657,2]
[331872386,1720805441068,-500.0,0.00024657,2]
[331872387,1720805441078,-500.0,0.00024657,2]
[331872388,1720805441087,-500.0,0.00024657,2]
[331872389,1720805441096,-520.35342488,0.00024657,2]
[331872390,1720805441105,-500.0,0.00024657,2]
[331872391,1720805441115,-500.0,0.00024657,2]
[331872392,1720805441124,-500.0,0.00024657,2]
[331872393,1720805441134,-500.0,0.00024657,2]
[331872394,1720805441144,-500.0,0.00024657,2]
[331872395,1720805441153,-500.0,0.00024657,2]
[331872396,1720805441162,-500.0,0.00024657,2]
[331872397,1720805441172,-500.0,0.00024657,2]
[331872398,1720805441181,-500.0,0.00024657,2]
[331872399,1720805441190,-500.0,0.00024657,2]
[331872400,1720805441199,-500.0,0.00024657,2]
[331872401,1720805441209,-500.0,0.00024657,2]
[331872402,1720805441220,-544.81,0.00024657,2]
[331872403,1720805441230,-581.89,0.00024657,2]
[331872404,1720805441239,-500.0,0.00024657,2]
[331872405,1720805441248,-500.0,0.00024657,2]
[331872406,1720805441257,-500.48,0.00024657,2]
[331872407,1720805441266,-500.0,0.00024657,2]
[331872408,1720805441277,-500.0,0.00024657,2]
[331872409,1720805441287,-500.0,0.00024657,2]
[331872410,1720805441297,-500.0,0.00024657,2]
[331872411,1720805441306,-500.0,0.00024657,2]
[331872412,1720805441316,-203.1806836,0.00024657,2]
[331872413,1720805441327,-500.0,0.00024657,2]
[331872414,1720805441336,-516.09,0.00024657,2]
[331872415,1720805441347,-500.0,0.00024657,2]
[331872416,1720805441357,-500.0,0.00024657,2]
[331872417,1720805441367,-500.0,0.00024657,2]
[331872418,1720805441377,-500.0,0.00024657,2]